bitfinex-derivatives/quotes_BTCF0:USTF0_20250811
["timestamp","ask_amount","ask_price","bid_price","bid_amount"]
[1754923251697,2.78434339,120220.0,120210.0,1.0138338]
[1754923251892,1.71999449,120220.0,120210.0,1.0960297]
[1754923252102,2.75305339,120220.0,120210.0,1.0621138]
[1754923252297,2.75305339,120220.0,120210.0,1.1453097]
[1754923252699,2.75305339,120220.0,120210.0,1.1383097]
[1754923252900,1.77397339,120220.0,120210.0,1.1383097]
[1754923253102,2.75089339,120220.0,120210.0,1.1443097]
[1754923253295,2.66770449,120220.0,120210.0,1.1443097]
[1754923253503,1.77197339,120220.0,120210.0,1.1443097]
[1754923253801,2.70017339,120220.0,120210.0,1.0551138]
[1754923254001,2.70017339,120220.0,120210.0,1.0561138]
[1754923254002,2.70417339,120220.0,120210.0,1.0561138]
[1754923254397,2.70417339,120220.0,120210.0,1.1443096]
[1754923254797,2.70426429,120220.0,120210.0,1.1443096]
[1754923254998,2.25882574,120220.0,120210.0,1.0561138]
[1754923255201,2.70617339,120220.0,120210.0,1.0571138]
[1754923255598,2.2939589,120220.0,120210.0,1.0571138]
[1754923255804,2.73738339,120220.0,120210.0,0.5696438]
[1754923256197,1.75818339,120220.0,120210.0,0.5696438]
[1754923256505,2.73558339,120220.0,120210.0,0.9304438]
[1754923257201,2.73542339,120220.0,120210.0,1.0148338]
[1754923257805,2.73542339,120220.0,120210.0,0.9622238]
[1754923258307,2.2919989,120220.0,120210.0,0.9622238]
[1754923258608,2.73542339,120220.0,120210.0,0.9622238]
[1754923259106,2.73542339,120220.0,120210.0,0.9304438]
[1754923259405,2.73542339,120220.0,120210.0,0.8829238]
[1754923259808,2.73542339,120220.0,120210.0,0.9286638]
[1754923260197,1.2835489,120220.0,120210.0,0.9601638]
[1754923260398,2.70213339,120220.0,120210.0,1.2000396]
[1754923260592,2.2587089,120220.0,120210.0,1.2000396]
[1754923260799,1.1911289,120220.0,120210.0,1.2000396]
[1754923261001,2.1669689,120220.0,120210.0,1.2000396]
[1754923261297,2.25868271,120220.0,120210.0,1.2000396]
[1754923261496,2.25869322,120220.0,120210.0,1.1168438]
[1754923261696,2.2585889,120220.0,120210.0,1.1168438]
[1754923262099,2.70201339,120220.0,120210.0,1.1168438]
[1754923262401,1.75738339,120220.0,120210.0,0.9286638]
[1754923262605,2.73186339,120220.0,120210.0,0.9286638]
[1754923263005,2.73186339,120220.0,120210.0,0.8829238]
[1754923263194,0.0832027,120200.0,120190.0,0.40654]
[1754923263403,1.72093719,120200.0,120190.0,0.8582638]
[1754923263601,0.72671387,120200.0,120190.0,1.0981534]
[1754923263904,1.25892938,120200.0,120190.0,1.0149438]
[1754923264098,1.73356387,120200.0,120190.0,1.0149438]
[1754923264298,1.25892938,120200.0,120190.0,1.0149438]
[1754923264502,1.70235387,120200.0,120190.0,1.0149438]
[1754923264909,1.70535387,120200.0,120190.0,1.0189438]
[1754923265402,0.01500668,120200.0,120190.0,1.1021534]
[1754923265607,0.99107004,120200.0,120190.0,1.1021534]
[1754923265803,0.97916336,120200.0,120190.0,1.54557789]
[1754923266004,0.12817606,120200.0,120190.0,1.0189438]
[1754923266204,0.24193606,120200.0,120190.0,1.0189438]
[1754923266513,1.69336719,120200.0,120190.0,1.0189438]
[1754923266704,1.69136719,120200.0,120190.0,1.0189438]
[1754923266899,1.69136719,120200.0,120190.0,0.006]
[1754923266900,1.45578168,120200.0,120190.0,0.006]
[1754923267101,0.0832165,120180.0,120170.0,0.40654]
[1754923267300,0.64957099,120180.0,120170.0,0.8267638]
[1754923267500,1.1516165,120180.0,120170.0,0.9214538]
[1754923267896,1.59504099,120180.0,120170.0,0.7810238]
[1754923268201,0.0832234,120170.0,120160.0,0.3608]
[1754923268402,1.62645789,120170.0,120160.0,0.8267638]
[1754923268597,2.77681789,120170.0,120160.0,0.8267638]
[1754923268801,2.16073789,120170.0,120160.0,0.4659638]
[1754923268997,3.13869789,120170.0,120160.0,0.4659638]
[1754923269202,0.0832303,120160.0,120150.0,0.40662]
[1754923269505,1.62730479,120160.0,120150.0,0.8268438]
[1754923270005,1.1526703,120160.0,120150.0,0.9215338]
[1754923270205,1.1526703,120160.0,120110.0,0.23039745]
[1754923270206,0.1665091,120130.0,120110.0,0.50793245]
[1754923270505,1.0689378,120120.0,120110.0,0.8306938]
[1754923270710,1.1120278,120120.0,120110.0,0.5149138]
[1754923271005,0.04177,120120.0,120110.0,0.5606538]
[1754923271318,0.04177,120120.0,120110.0,0.9214538]
[1754923271609,1.55585239,120120.0,120110.0,0.9214538]
[1754923271801,1.55585239,120120.0,120110.0,0.5606538]
[1754923272398,0.002,120120.0,120110.0,1.0047187]
[1754923272612,0.88577016,120120.0,120110.0,1.44814319]
[1754923272905,0.06510291,120130.0,120120.0,0.0832579]
[1754923273113,0.0832395,120150.0,120130.0,0.2497485]
[1754923273408,0.69314709,120150.0,120140.0,0.14043]
[1754923273603,0.60990389,120150.0,120140.0,0.5844741]
[1754923273804,0.167467,120160.0,120140.0,0.7509598]
[1754923274000,0.67709065,120160.0,120150.0,0.50123]
[1754923274211,1.58431175,120160.0,120150.0,0.50123]
[1754923274397,1.58441669,120160.0,120150.0,0.50123]
[1754923275004,2.12146624,120160.0,120150.0,0.3608]
[1754923275303,0.0832372,120150.0,120140.0,0.001]
[1754923275605,1.42243618,120150.0,120140.0,0.001]
[1754923275806,1.42243618,120150.0,120120.0,0.09541]
[1754923275807,0.52667549,120130.0,120120.0,0.09541]
[1754923276113,0.0832579,120120.0,120110.0,0.14043]
[1754923276409,1.61107239,120120.0,120110.0,0.14043]
[1754923276804,1.61111239,120120.0,120110.0,0.2236948]
[1754923277014,0.0001,120120.0,120110.0,0.5844948]
[1754923277309,0.0002069,120120.0,120110.0,0.5844948]
[1754923277511,0.9936069,120120.0,120110.0,0.5844948]
[1754923277713,1.0768647,120120.0,120110.0,0.5844948]
[1754923278008,0.0002069,120120.0,120110.0,0.5844948]
[1754923278204,0.9935269,120120.0,120110.0,0.5844948]
[1754923278708,1.5,120140.0,120130.0,0.0832509]
[1754923278910,2.02666849,120140.0,120130.0,0.5844809]
[1754923279109,1.5,120140.0,120130.0,0.9452809]
[1754923279304,2.49304,120140.0,120130.0,0.9452809]
[1754923279614,3.01970849,120140.0,120130.0,0.9452809]
[1754923279907,1.50408306,120140.0,120130.0,0.9452809]
[1754923280109,1.50418306,120140.0,120130.0,1.1117609]
[1754923280412,0.99662306,120140.0,120130.0,1.1117609]
[1754923281208,2.49962306,120140.0,120130.0,1.1127609]
[1754923281513,2.58286716,120140.0,120130.0,1.1127609]
[1754923281713,2.49930306,120140.0,120130.0,1.1127609]
[1754923281909,1.5,120140.0,120130.0,1.60618539]
[1754923282114,0.06719706,120160.0,120150.0,0.0832371]
[1754923282318,1.15036,120170.0,120150.0,1.55516149]
[1754923282610,1.76862779,120170.0,120160.0,0.40654]
[1754923282814,2.80600779,120170.0,120160.0,0.5844602]
[1754923283011,3.26870702,120170.0,120160.0,0.5844602]
[1754923283216,2.65043923,120170.0,120160.0,0.5844602]
[1754923283411,2.65043923,120170.0,120160.0,1.19432469]
[1754923283412,7.923e-05,120170.0,120160.0,1.19432469]
[1754923283711,0.05853433,120210.0,120200.0,0.0832025]
[1754923283911,0.05853433,120210.0,120200.0,0.5844325]
[1754923284102,0.09995993,120210.0,120200.0,0.5844325]
[1754923284309,1.09219993,120210.0,120200.0,0.5844325]
[1754923284505,1.00900433,120210.0,120200.0,0.5844325]
[1754923284710,1.00902707,120210.0,120200.0,0.5844325]
[1754923284909,0.00010274,120210.0,120200.0,0.5844325]
[1754923285219,0.99194274,120210.0,120200.0,0.5844325]
[1754923285418,2.49194274,120210.0,120200.0,0.5844325]
[1754923285612,1.50010274,120210.0,120200.0,0.5844325]
[1754923285919,2.49274274,120210.0,120200.0,0.5874325]
[1754923286418,2.49374274,120210.0,120200.0,0.5874325]
[1754923286823,2.54359274,120210.0,120200.0,0.5874325]
[1754923287023,2.66855834,120210.0,120200.0,0.5874325]
[1754923287316,2.12034283,120210.0,120200.0,0.5874325]
[1754923287515,2.49242274,120210.0,120200.0,0.5874325]
[1754923287918,2.60994108,120210.0,120200.0,0.5874325]
[1754923288318,0.06977108,120210.0,120200.0,1.19724099]
[1754923288514,1.05973108,120210.0,120200.0,1.19724099]
[1754923288922,0.06977108,120210.0,120200.0,0.5874325]
[1754923289222,0.16912108,120210.0,120200.0,0.5874325]
[1754923289423,1.11471108,120210.0,120200.0,0.5874325]
[1754923289725,1.05941108,120210.0,120200.0,0.5874325]
[1754923290618,1.15876108,120210.0,120200.0,0.5874325]
[1754923292118,2.48926,120220.0,120210.0,1.03651039]
[1754923292316,0.41232698,120240.0,120210.0,0.7594734]
[1754923292317,0.0832836,120230.0,120210.0,0.7594734]
[1754923292514,0.57065809,120230.0,120220.0,0.593079]
[1754923292819,1.5604061,120230.0,120220.0,0.545359]
[1754923293015,1.03379801,120230.0,120220.0,0.692979]
[1754923293317,1.13578801,120230.0,120220.0,0.692979]
[1754923293519,1.13778801,120230.0,120220.0,0.692979]
[1754923294311,0.14814801,120230.0,120220.0,0.692979]
[1754923294517,0.10409801,120230.0,120220.0,0.692979]
[1754923294718,1.09189801,120230.0,120220.0,0.692979]
[1754923295020,0.18828001,120230.0,120220.0,0.700979]
[1754923295226,1.21753001,120230.0,120220.0,0.601079]
[1754923295427,2.71953001,120230.0,120220.0,0.704979]
[1754923295817,2.24249326,120230.0,120220.0,0.455989]
[1754923296017,3.22941326,120230.0,120220.0,0.555889]
[1754923296219,3.14595126,120230.0,120220.0,0.704979]
[1754923296420,3.22913326,120230.0,120220.0,0.704979]
[1754923297229,1.71588677,120230.0,120220.0,0.704979]
[1754923297423,1.71588677,120230.0,120220.0,1.14840349]
[1754923297424,0.06984677,120230.0,120220.0,1.14840349]
[1754923297816,1.05492677,120230.0,120220.0,0.704979]
[1754923298021,2.55492677,120230.0,120220.0,0.704979]
[1754923298217,2.65691677,120230.0,120220.0,0.704979]
[1754923298426,1.79906877,120230.0,120220.0,0.704979]
[1754923298627,2.78442877,120230.0,120220.0,0.704979]
[1754923298827,2.78370877,120230.0,120220.0,0.704979]
[1754923299029,1.79906877,120230.0,120220.0,0.704979]
[1754923299230,2.24249326,120230.0,120220.0,0.555889]
[1754923299425,3.22705326,120230.0,120220.0,0.5558884]
[1754923299632,3.22733326,120230.0,120220.0,0.5558884]
[1754923300124,2.24249326,120230.0,120220.0,0.5558884]
[1754923300533,3.22709326,120230.0,120220.0,0.5558884]
[1754923301228,3.22709326,120230.0,120220.0,0.4727]
[1754923301229,3.22638525,120230.0,120220.0,0.4727]
[1754923301430,0.0831884,120220.0,120210.0,0.3608]
[1754923301728,0.67028289,120220.0,120210.0,0.3608]
[1754923301927,0.0831954,120210.0,120200.0,0.6104066]
[1754923302126,0.67036946,120210.0,120200.0,0.6592766]
[1754923303034,0.67036946,120210.0,120200.0,0.4928722]
[1754923303247,1.82044989,120210.0,120200.0,0.40967]
[1754923303441,1.82044989,120210.0,120200.0,0.4928723]
[1754923303639,2.80292989,120210.0,120200.0,0.4928723]
[1754923304749,2.80792989,120210.0,120200.0,0.4928723]
[1754923305247,2.81292989,120210.0,120200.0,0.4928723]
[1754923306043,2.81292989,120210.0,120200.0,0.40967]
[1754923306239,2.81292989,120210.0,120200.0,0.1320723]
[1754923306747,2.3695054,120210.0,120200.0,0.1320723]
[1754923306948,2.81292989,120210.0,120200.0,0.1320723]
[1754923307252,2.81300774,120210.0,120200.0,0.04887]
[1754923307444,2.81292989,120210.0,120200.0,0.1320723]
[1754923307648,0.0832023,120200.0,120190.0,0.7117917]
[1754923307854,0.62607595,120200.0,120190.0,0.6763038]
[1754923308353,0.69211595,120200.0,120190.0,0.7436438]
[1754923308738,0.69211595,120200.0,120190.0,0.6959238]
[1754923308944,1.67053679,120200.0,120190.0,0.40967]
[1754923309245,1.66981679,120200.0,120190.0,0.04887]
[1754923309452,0.69201679,120200.0,120190.0,0.04887]
[1754923309749,1.66965679,120200.0,120190.0,0.04887]
[1754923310048,1.67165679,120200.0,120190.0,0.04887]
[1754923310250,0.69801679,120200.0,120190.0,0.04887]
[1754923310439,1.67569679,120200.0,120190.0,0.1320792]
[1754923311147,0.69801679,120200.0,120190.0,0.04887]
[1754923311348,1.67209679,120200.0,120190.0,0.04987]
[1754923311645,2.11504128,120200.0,120190.0,0.04987]
[1754923311845,1.67171052,120200.0,120190.0,0.04987]
[1754923312043,1.67171052,120200.0,120190.0,0.001]
[1754923312044,0.2495923,120200.0,120190.0,0.001]
[1754923312248,1.67105679,120200.0,120190.0,0.001]
[1754923312445,1.67105679,120200.0,120190.0,0.0842092]
[1754923312652,1.67105679,120200.0,120190.0,0.1367092]
[1754923313147,0.69501679,120200.0,120190.0,0.5452292]
[1754923313355,1.14307,120200.0,120190.0,0.6125692]
[1754923313653,1.22633672,120200.0,120190.0,0.6125692]
[1754923313849,1.14313442,120200.0,120190.0,0.6125692]
[1754923314148,0.00206442,120200.0,120190.0,0.6172692]
[1754923314344,0.00306442,120200.0,120190.0,0.6172692]
[1754923314550,0.97718442,120200.0,120190.0,0.6172692]
[1754923314748,0.00306442,120200.0,120190.0,0.6172692]
[1754923315053,0.97690442,120200.0,120190.0,0.5499292]
[1754923315257,0.00306442,120200.0,120190.0,0.5499292]
[1754923315552,0.00306442,120200.0,120190.0,1.20975369]
[1754923315752,0.00206442,120200.0,120190.0,1.20975369]
[1754923315943,0.00306442,120200.0,120190.0,1.21075369]
[1754923316143,0.9739,120210.0,120190.0,1.37716769]
[1754923316349,0.0001,120210.0,120200.0,0.69276704]
[1754923316545,0.97304,120210.0,120200.0,0.94236954]
[1754923316755,0.0001,120220.0,120210.0,0.0831954]
[1754923316956,1.56683876,120230.0,120220.0,0.0831885]
[1754923317256,2.54006444,120230.0,120220.0,0.5442085]
[1754923317652,1.56682444,120230.0,120220.0,0.5442085]
[1754923317853,1.65000594,120230.0,120220.0,0.6441085]
[1754923318157,2.72155594,120230.0,120220.0,0.6441085]
[1754923318349,1.74935594,120230.0,120220.0,0.6441085]
[1754923318549,1.74935594,120230.0,120220.0,0.6451085]
[1754923318550,1.75035594,120230.0,120220.0,0.6451085]
[1754923318757,2.72227594,120230.0,120220.0,0.6451085]
[1754923319356,2.72303594,120230.0,120220.0,0.6521085]
[1754923319557,2.63985444,120230.0,120220.0,0.6521085]
[1754923320159,2.72303594,120230.0,120220.0,0.6521085]
[1754923320361,1.66817444,120230.0,120220.0,0.6521085]
[1754923320658,1.66817444,120230.0,120220.0,0.7194485]
[1754923320850,2.63769444,120230.0,120220.0,0.7194485]
[1754923321559,1.56882444,120230.0,120220.0,1.32922499]
[1754923321853,0.06882444,120230.0,120220.0,1.47776973]
[1754923322056,1.03726444,120230.0,120220.0,1.03434524]
[1754923322654,0.06882444,120230.0,120220.0,0.96432524]
[1754923322855,0.06882444,120230.0,120220.0,1.03217524]
[1754923323054,1.03670444,120230.0,120220.0,1.03217524]
[1754923323955,1.13275444,120230.0,120220.0,1.03217524]
[1754923324159,0.16519444,120230.0,120220.0,1.03217524]
[1754923324459,0.06882444,120230.0,120220.0,1.32705499]
[1754923327263,0.06882444,120230.0,120220.0,0.8836305]
[1754923327659,0.06882444,120230.0,120220.0,1.32705499]
[1754923327863,1.03054444,120230.0,120220.0,1.32705499]
[1754923329564,0.06882444,120230.0,120220.0,1.32705499]
[1754923329866,1.19217444,120230.0,120220.0,0.8836305]
[1754923330158,0.23121444,120230.0,120220.0,0.7172785]
[1754923330360,1.63543893,120230.0,120220.0,0.7172785]
[1754923330569,1.19129444,120230.0,120220.0,0.7172785]
[1754923330756,0.23121444,120230.0,120220.0,0.7172785]
[1754923330954,0.19579444,120230.0,120220.0,1.16070299]
[1754923331158,0.06882444,120230.0,120220.0,1.16070299]
[1754923331370,1.03018444,120230.0,120220.0,1.16070299]
[1754923331862,1.02986444,120230.0,120220.0,1.16070299]
[1754923332166,1.02914444,120230.0,120220.0,1.16070299]
[1754923332462,0.06882444,120230.0,120220.0,1.16070299]
[1754923332666,1.02818444,120230.0,120220.0,1.16070299]
[1754923332861,0.06882444,120230.0,120220.0,0.7172785]
[1754923333063,1.12455444,120230.0,120220.0,0.7172785]
[1754923333262,1.15515444,120230.0,120220.0,0.7172785]
[1754923334468,1.15515444,120230.0,120220.0,0.6735685]
[1754923334770,1.15715444,120230.0,120220.0,0.6735685]
[1754923335569,0.27897594,120230.0,120220.0,0.6735685]
[1754923335759,1.71670043,120230.0,120220.0,0.5518884]
[1754923335962,1.71494043,120230.0,120220.0,0.5518884]
[1754923336166,0.31439594,120230.0,120220.0,0.5518884]
[1754923336367,0.31439594,120230.0,120220.0,0.6057184]
[1754923336368,1.27143594,120230.0,120220.0,0.6057184]
[1754923337172,0.23121444,120230.0,120220.0,0.6735684]
[1754923337465,0.23121444,120230.0,120220.0,0.7172784]
[1754923337672,1.18645444,120230.0,120220.0,0.7172784]
[1754923338067,1.26963594,120230.0,120220.0,0.7172784]
[1754923338273,1.26963594,120230.0,120220.0,0.5518884]
[1754923338676,1.71306043,120230.0,120220.0,0.5518884]
[1754923338867,1.62987893,120230.0,120220.0,0.5518884]
[1754923339067,1.71306043,120230.0,120220.0,0.6057184]
[1754923339275,1.26963594,120230.0,120220.0,0.6057184]
[1754923339473,0.31439594,120230.0,120220.0,0.6057184]
[1754923339675,1.26715594,120230.0,120220.0,0.5518884]
[1754923339975,1.71014043,120230.0,120220.0,0.5518884]
[1754923340379,1.62615893,120230.0,120220.0,0.5518884]
[1754923340578,1.62615893,120230.0,120220.0,0.6057184]
[1754923340775,1.26591594,120230.0,120220.0,0.6057184]
[1754923341479,1.18273444,120230.0,120220.0,0.6057184]
[1754923341681,1.26591594,120230.0,120220.0,0.6057184]
[1754923342380,1.26591594,120230.0,120220.0,0.5518884]
[1754923342681,1.70654043,120230.0,120220.0,0.5518884]
[1754923343668,1.70654043,120230.0,120220.0,0.70043314]
[1754923344575,1.26311594,120230.0,120220.0,0.70043314]
[1754923344771,1.70654043,120230.0,120220.0,0.70043314]
[1754923345173,0.75782043,120230.0,120220.0,0.70043314]
[1754923345373,1.70338043,120230.0,120220.0,0.70043314]
[1754923346072,1.70282043,120230.0,120220.0,0.70043314]
[1754923346475,1.70282043,120230.0,120220.0,0.75426314]
[1754923346877,1.70282043,120230.0,120220.0,0.76726549]
[1754923347077,1.64602614,120230.0,120220.0,0.76726549]
[1754923347283,1.20260165,120230.0,120220.0,0.76726549]
[1754923347980,1.20260165,120230.0,120220.0,0.75426314]
[1754923348168,1.11630015,120230.0,120220.0,0.75426314]
[1754923348372,1.19948175,120230.0,120220.0,0.75426314]
[1754923348681,1.64290624,120230.0,120220.0,0.75426314]
[1754923349183,1.64490624,120230.0,120220.0,0.75426314]
[1754923349383,1.64790624,120230.0,120220.0,0.74826314]
[1754923349578,1.56472464,120230.0,120220.0,0.74826314]
[1754923349778,0.17942015,120230.0,120220.0,0.86099314]
[1754923350283,0.17942015,120230.0,120220.0,0.7124484]
[1754923350582,1.20116175,120230.0,120220.0,0.7067284]
[1754923350978,1.11798015,120230.0,120220.0,0.8556843]
[1754923351179,1.20116175,120230.0,120220.0,0.8556843]
[1754923351380,1.11798015,120230.0,120220.0,0.8556843]
[1754923351580,1.20116175,120230.0,120220.0,0.8556843]
[1754923352170,1.11798015,120230.0,120220.0,0.8556843]
[1754923352983,1.20116175,120230.0,120220.0,0.8556843]
[1754923353785,0.26260175,120230.0,120220.0,0.8556843]
[1754923354085,1.19860175,120230.0,120220.0,0.8556843]
[1754923354287,1.19860175,120230.0,120220.0,0.6109184]
[1754923354477,1.19860175,120230.0,120220.0,0.81079378]
[1754923354986,1.11542015,120230.0,120220.0,0.85567378]
[1754923355187,1.19860175,120230.0,120220.0,0.85567378]
[1754923355486,1.19660175,120230.0,120220.0,0.7067284]
[1754923355986,1.64002624,120230.0,120220.0,0.6618484]
[1754923356181,1.11342015,120230.0,120220.0,0.6618484]
[1754923356383,1.55684464,120230.0,120220.0,0.7067284]
[1754923356587,1.11342015,120230.0,120220.0,0.7067284]
[1754923357784,1.19660175,120230.0,120220.0,0.7067284]
[1754923358091,1.19660175,120230.0,120220.0,0.6618484]
[1754923358391,1.19660175,120230.0,120220.0,0.7067284]
[1754923358688,1.11374015,120230.0,120220.0,0.7067284]
[1754923358889,1.19692175,120230.0,120220.0,0.7067284]
[1754923359090,1.19692175,120230.0,120220.0,0.6618484]
[1754923359493,0.70634624,120230.0,120220.0,0.6618484]
[1754923359691,0.70634624,120230.0,120220.0,0.5458884]
[1754923359892,1.63406624,120230.0,120220.0,0.5458884]
[1754923360091,0.70634624,120230.0,120220.0,0.5458884]
[1754923360397,1.19064175,120230.0,120220.0,0.5458884]
[1754923360580,1.63322624,120230.0,120220.0,0.5458884]
[1754923360786,0.70634624,120230.0,120220.0,0.5458884]
[1754923360986,0.70779398,120230.0,120220.0,0.5458884]
[1754923361192,1.63387398,120230.0,120220.0,0.5458884]
[1754923361395,0.70779398,120230.0,120220.0,0.5458884]
[1754923361992,1.63347398,120230.0,120220.0,0.5458884]
[1754923362592,0.70779398,120230.0,120220.0,0.4627]
[1754923362784,1.6315883,120230.0,120220.0,0.1019]
[1754923362989,1.0685083,120230.0,120220.0,0.1019]
[1754923363185,1.2848603,120230.0,120220.0,0.1019]
[1754923363390,2.2085003,120230.0,120220.0,0.1019]
[1754923364096,2.2081003,120230.0,120220.0,0.1850886]
[1754923364296,2.2081003,120230.0,120220.0,0.1019]
[1754923364594,2.2081003,120230.0,120220.0,0.1850886]
[1754923365386,1.2848603,120230.0,120220.0,0.1850886]
[1754923365589,1.9897483,120230.0,120220.0,0.1850886]
[1754923365888,0.7077083,120230.0,120220.0,0.5458886]
[1754923366091,1.6281083,120230.0,120220.0,0.5458886]
[1754923366482,1.18468381,120230.0,120220.0,0.5968186]
[1754923366683,0.26428381,120230.0,120220.0,0.5968186]
[1754923367088,1.18376381,120230.0,120220.0,0.5968186]
[1754923367893,0.18110221,120230.0,120220.0,0.7067286]
[1754923368194,0.26428391,120230.0,120220.0,0.7067286]
[1754923368395,1.6255884,120230.0,120220.0,0.7067286]
[1754923368598,1.5424067,120230.0,120220.0,0.4627]
[1754923369398,1.5424067,120230.0,120220.0,0.51363]
[1754923370998,1.5402067,120230.0,120220.0,0.4627]
[1754923371196,0.62458672,120230.0,120220.0,0.4627]
[1754923371394,1.5394867,120230.0,120220.0,0.4627]
[1754923371698,0.6245267,120230.0,120220.0,0.4627]
[1754923372100,0.6245267,120230.0,120220.0,0.04701]
[1754923372101,1.7970649,120230.0,120220.0,0.04701]
[1754923372291,1.7970649,120230.0,120220.0,0.19610104]
[1754923372292,0.8830249,120230.0,120220.0,0.19610104]
[1754923372493,1.7966649,120230.0,120220.0,0.19610104]
[1754923372694,1.7967049,120230.0,120220.0,0.14374104]
[1754923372903,2.1575049,120230.0,120220.0,0.04964104]
[1754923373198,1.7967049,120230.0,120210.0,0.40936]
[1754923373399,0.44889449,120220.0,120210.0,0.40936]
[1754923373589,0.45764449,120220.0,120210.0,0.40936]
[1754923374603,0.45764449,120220.0,120210.0,0.41036]
[1754923374991,1.36832449,120220.0,120210.0,0.3618]
[1754923375903,0.45764449,120220.0,120210.0,0.3618]
[1754923376099,1.36984449,120220.0,120210.0,0.3618]
[1754923376306,0.45964449,120220.0,120210.0,0.3618]
[1754923376505,1.37264449,120220.0,120210.0,0.3628]
[1754923376694,1.37064449,120220.0,120210.0,0.41036]
[1754923376897,0.93122,120220.0,120210.0,0.41136]
[1754923377111,1.37474968,120220.0,120210.0,0.41136]
[1754923377408,1.37464449,120220.0,120210.0,0.41136]
[1754923378304,0.02129685,120220.0,120210.0,0.41136]
[1754923378500,0.93158,120220.0,120210.0,0.41136]
[1754923378700,1.37500449,120220.0,120210.0,0.41136]
[1754923379011,1.37500449,120220.0,120210.0,0.46273]
[1754923379405,0.46464449,120220.0,120210.0,0.46273]
[1754923379606,1.37388449,120220.0,120210.0,0.41136]
[1754923379801,1.37388449,120220.0,120210.0,0.56032556]
[1754923380202,0.46464449,120220.0,120210.0,0.55908556]
[1754923380599,0.00709959,120220.0,120210.0,1.04536449]
[1754923380801,0.00154774,120230.0,120210.0,1.26173249]
[1754923381111,0.8622,120240.0,120220.0,0.94863449]
[1754923381313,0.02799758,120260.0,120230.0,1.04336449]
[1754923381610,0.08033758,120260.0,120250.0,0.7216]
[1754923381810,1.52922886,120260.0,120250.0,0.76892]
[1754923382011,1.50671953,120260.0,120250.0,0.96074]
[1754923382319,1.56259953,120260.0,120250.0,0.91502]
[1754923382512,1.56259953,120260.0,120250.0,0.70290157]
[1754923382705,0.65339953,120260.0,120250.0,0.70290157]
[1754923382906,1.56163953,120260.0,120250.0,0.70590157]
[1754923383409,1.56163953,120260.0,120250.0,0.61212]
[1754923383605,1.56163953,120260.0,120250.0,0.60912]
[1754923383809,1.56463953,120260.0,120250.0,0.60912]
[1754923384111,1.56563953,120260.0,120250.0,0.60912]
[1754923384312,1.63319981,120260.0,120250.0,0.60912]
[1754923384617,1.71635971,120260.0,120250.0,0.60912]
[1754923384817,1.72689525,120260.0,120250.0,0.60912]
[1754923385219,1.72389525,120260.0,120250.0,0.60912]
[1754923385420,1.28247076,120260.0,120250.0,0.60912]
[1754923385620,1.72589525,120260.0,120250.0,0.60912]
[1754923386726,1.72578846,120260.0,120250.0,0.46302]
[1754923387221,1.72374846,120260.0,120250.0,0.46302]
[1754923387422,0.81754846,120260.0,120250.0,0.46302]
[1754923387626,2.08454846,120260.0,120250.0,0.10222]
[1754923388023,1.17834846,120260.0,120250.0,0.10222]
[1754923388216,2.08450846,120260.0,120250.0,0.25090157]
[1754923388922,2.08450846,120260.0,120250.0,0.10222]
[1754923390417,1.64108397,120260.0,120250.0,0.10222]
[1754923390625,2.08442846,120260.0,120250.0,0.10222]
[1754923391122,2.93812495,120260.0,120250.0,0.0069716]
[1754923391323,0.0831744,120240.0,120230.0,0.19600157]
[1754923391623,1.96829778,120240.0,120230.0,0.19600157]
[1754923391809,1.96820889,120240.0,120230.0,0.19600157]
[1754923392014,1.96828047,120240.0,120230.0,0.19600157]
[1754923392215,1.96827691,120240.0,120230.0,0.14868157]
[1754923392416,1.96820889,120240.0,120230.0,0.14868157]
[1754923392619,1.97420889,120240.0,120230.0,0.14968157]
[1754923393021,1.97420889,120240.0,120230.0,0.001]
[1754923393217,1.23451289,120240.0,120230.0,0.001]
[1754923393417,2.14751289,120240.0,120230.0,0.002]
[1754923393920,1.24151289,120240.0,120230.0,0.002]
[1754923394119,2.14751289,120240.0,120230.0,0.002]
[1754923394532,2.14751289,120240.0,120230.0,0.04932]
[1754923395023,2.13551289,120240.0,120230.0,0.04732]
[1754923395228,2.13751289,120240.0,120230.0,0.04732]
[1754923395822,0.0831813,120230.0,120220.0,0.19600157]
[1754923396019,0.59288579,120230.0,120220.0,0.19600157]
[1754923396221,0.70137579,120230.0,120220.0,0.19600157]
[1754923396824,0.70137579,120230.0,120220.0,0.24737157]
[1754923397228,0.70937579,120230.0,120220.0,0.24837157]
[1754923397522,0.70945212,120230.0,120220.0,0.24837157]
[1754923397728,0.70948293,120230.0,120220.0,0.24837157]
[1754923397920,0.70937579,120230.0,120220.0,0.24837157]
[1754923398319,0.71437579,120230.0,120220.0,0.38982157]
[1754923398830,0.71437579,120230.0,120220.0,0.24114]
[1754923399429,0.71437579,120230.0,120220.0,0.19542]
[1754923399624,1.98101579,120230.0,120220.0,0.07988]
[1754923399824,1.62021579,120230.0,120220.0,0.16084]
[1754923400029,0.71437579,120230.0,120220.0,0.24114]
[1754923400232,1.62021579,120230.0,120220.0,0.24114]
[1754923400927,0.63633579,120230.0,120220.0,0.24114]
[1754923401132,1.61569579,120230.0,120220.0,0.24114]
[1754923401631,1.61565579,120230.0,120220.0,0.24114]
[1754923402024,0.70985579,120230.0,120220.0,0.24114]
[1754923402326,1.61557579,120230.0,120220.0,0.24114]
[1754923403032,0.70985579,120230.0,120220.0,0.24114]
[1754923403218,1.61561579,120230.0,120220.0,0.24114]
[1754923403419,1.61569787,120230.0,120220.0,0.24114]
[1754923403624,1.61567493,120230.0,120220.0,0.24114]
[1754923403932,1.61561579,120230.0,120220.0,0.60194]
[1754923404428,0.70985579,120230.0,120220.0,0.60194]
[1754923405128,2.76565579,120230.0,120220.0,0.70184]
[1754923405433,0.70985579,120230.0,120220.0,0.34104]
[1754923405725,2.76561579,120230.0,120220.0,0.70184]
[1754923405931,1.86005579,120230.0,120220.0,0.34104]
[1754923406127,2.76561579,120230.0,120220.0,0.34104]
[1754923407529,2.76571045,120230.0,120220.0,0.34104]
[1754923407734,1.86005579,120230.0,120220.0,0.34104]
[1754923407934,2.2180614,120230.0,120220.0,0.7850283]
[1754923408236,1.7237589,120230.0,120220.0,0.7850283]
[1754923408537,0.57800464,120230.0,120220.0,0.29790157]
[1754923408739,2.70525464,120230.0,120220.0,0.29790157]
[1754923409132,2.3246814,120230.0,120220.0,0.14922]
[1754923409338,1.79537464,120230.0,120220.0,0.34122]
[1754923409535,2.3200814,120230.0,120220.0,0.34122]
[1754923409832,2.3200814,120230.0,120220.0,0.70202]
[1754923410033,1.4148014,120230.0,120220.0,0.7852083]
[1754923410234,1.1632,120230.0,120220.0,1.16578154]
[1754923410539,2.06852407,120230.0,120220.0,1.16578154]
[1754923410739,2.06852407,120230.0,120220.0,0.7852083]
[1754923411235,2.06848407,120230.0,120220.0,0.7852083]